bitfinex/quotes_BTCUSD_20250831
["timestamp","ask_amount","ask_price","bid_price","bid_amount"]
[1756633428164,0.62580025,108920.0,108910.0,0.1797094]
[1756633428371,0.62580025,108920.0,108910.0,0.3333094]
[1756633429756,0.62580025,108920.0,108910.0,0.1797094]
[1756633430439,0.62580025,108920.0,108910.0,0.3332694]
[1756633431292,1.6389038,108920.0,108910.0,0.0004]
[1756633431596,1.68362076,108920.0,108910.0,0.0004]
[1756633431831,1.61150646,108920.0,108910.0,0.0004]
[1756633432046,1.61154646,108920.0,108910.0,0.0004]
[1756633432726,1.61254646,108920.0,108910.0,0.0004]
[1756633434238,1.61154646,108920.0,108910.0,0.0004]
[1756633434886,1.61354646,108920.0,108910.0,0.0004]
[1756633435331,1.61154646,108920.0,108910.0,0.0004]
[1756633437627,1.61154331,108920.0,108910.0,0.0004]
[1756633438473,1.5944385,108920.0,108910.0,0.0004]
[1756633439718,1.61154267,108920.0,108910.0,0.0004]
[1756633440934,1.61154259,108920.0,108910.0,0.0004]
[1756633441883,1.45794259,108920.0,108910.0,0.0004]
[1756633443452,0.56833409,108920.0,108910.0,0.09838001]
[1756633443659,0.99340925,108920.0,108910.0,0.12380758]
[1756633443867,1.4355885,108920.0,108910.0,0.12380758]
[1756633445771,1.4355885,108920.0,108910.0,0.12610305]
[1756633445980,1.4355885,108920.0,108910.0,0.12380758]
[1756633450691,1.4376785,108920.0,108910.0,0.12380758]
[1756633453486,1.4376785,108920.0,108910.0,0.27732758]
[1756633455583,1.4376785,108920.0,108910.0,0.27434758]
[1756633456425,1.4408385,108920.0,108910.0,0.12082758]
[1756633456875,1.4408385,108920.0,108910.0,0.27442758]
[1756633457766,1.4408385,108920.0,108910.0,0.09338001]
[1756633457975,1.4408385,108920.0,108910.0,0.154]
[1756633459073,1.45796125,108920.0,108910.0,0.154]
[1756633460408,1.22456519,108920.0,108910.0,0.15484]
[1756633460582,1.40818619,108920.0,108910.0,0.15484]
[1756633461462,1.36345444,108920.0,108910.0,0.15484]
[1756633461675,1.38058309,108920.0,108910.0,0.15484]
[1756633464792,1.40818909,108920.0,108910.0,0.15484]
[1756633465224,1.40818909,108920.0,108910.0,0.0004]
[1756633465392,1.40818909,108920.0,108910.0,0.15484]
[1756633465804,1.40818909,108920.0,108910.0,0.0004]
[1756633471864,1.56254909,108920.0,108910.0,0.0004]
[1756633472062,1.40818909,108920.0,108910.0,0.0004]
[1756633472276,1.40819013,108920.0,108910.0,0.0004]
[1756633472490,1.56251013,108920.0,108910.0,0.0004]
[1756633472699,1.56251013,108920.0,108910.0,1e-08]
[1756633472900,1.56250941,108920.0,108910.0,1e-08]
[1756633473733,1.56450941,108920.0,108910.0,1e-08]
[1756633473991,1.56250941,108920.0,108910.0,1e-08]
[1756633474177,1.56450941,108920.0,108910.0,1e-08]
[1756633475735,1.56550941,108920.0,108910.0,1e-08]
[1756633476189,1.56450941,108920.0,108910.0,1e-08]
[1756633476394,1.41018941,108920.0,108910.0,1e-08]
[1756633476763,1.56542941,108920.0,108910.0,1e-08]
[1756633478275,1.41118941,108920.0,108910.0,1e-08]
[1756633478665,1.41118941,108920.0,108910.0,0.00198001]
[1756633479949,1.56538941,108920.0,108910.0,1e-08]
[1756633483008,1.56538717,108920.0,108910.0,1e-08]
[1756633492561,1.41118717,108920.0,108910.0,1e-08]
[1756633492772,1.56510717,108920.0,108910.0,1e-08]
[1756633493479,1.67623414,108920.0,108910.0,1e-08]
[1756633493688,1.65910741,108920.0,108910.0,1e-08]
[1756633493905,1.67624623,108920.0,108910.0,1e-08]
[1756633499537,2.6717317,108920.0,108910.0,1e-08]
[1756633499751,1.67624623,108920.0,108910.0,1e-08]
[1756633500968,1.68267479,108920.0,108910.0,1e-08]
[1756633501179,2.67816026,108920.0,108910.0,1e-08]
[1756633501387,1.68267479,108920.0,108910.0,1e-08]
[1756633503266,1.67625035,108920.0,108910.0,1e-08]
[1756633503472,1.68267895,108920.0,108910.0,1e-08]
[1756633503925,1.6826789,108920.0,108910.0,1e-08]
[1756633504139,2.67816437,108920.0,108910.0,1e-08]
[1756633504591,2.69791157,108920.0,108910.0,1e-08]
[1756633508073,2.69799157,108920.0,108910.0,1e-08]
[1756633509320,2.67824437,108920.0,108910.0,1e-08]
[1756633509525,2.67824096,108920.0,108910.0,1e-08]
[1756633511931,2.67820096,108920.0,108910.0,1e-08]
[1756633513754,2.52424096,108920.0,108910.0,1e-08]
[1756633513954,2.65463288,108920.0,108910.0,1e-08]
[1756633514172,2.67819013,108920.0,108910.0,1e-08]
[1756633514377,2.67815013,108920.0,108910.0,1e-08]
[1756633517788,2.52422991,108920.0,108910.0,1e-08]
[1756633517968,2.69784588,108920.0,108910.0,1e-08]
[1756633519959,2.54396588,108920.0,108910.0,1e-08]
[1756633520170,2.69792588,108920.0,108910.0,1e-08]
[1756633523569,2.69832588,108920.0,108910.0,1e-08]
[1756633524806,2.69833067,108920.0,108910.0,1e-08]
[1756633525594,2.69833144,108920.0,108910.0,1e-08]
[1756633525796,2.54397144,108920.0,108910.0,1e-08]
[1756633526172,2.69829144,108920.0,108910.0,1e-08]
[1756633531934,2.69829396,108920.0,108910.0,1e-08]
[1756633533070,2.79127397,108920.0,108910.0,1e-08]
[1756633533228,6.31216842,108920.0,108910.0,1e-08]
[1756633534799,6.31116842,108920.0,108910.0,1e-08]
[1756633534924,6.30916842,108920.0,108910.0,1e-08]
[1756633535333,6.31116842,108920.0,108910.0,1e-08]
[1756633535549,6.3111629,108920.0,108910.0,1e-08]
[1756633535949,6.3151629,108920.0,108910.0,1e-08]
[1756633536330,6.3170429,108920.0,108910.0,1e-08]
[1756633536514,6.29237045,108920.0,108910.0,1e-08]
[1756633536718,6.29037045,108920.0,108910.0,1e-08]
[1756633537059,6.29337045,108920.0,108910.0,1e-08]
[1756633538204,6.3179226,108920.0,108910.0,1e-08]
[1756633538421,6.35696909,108920.0,108910.0,1e-08]
[1756633539577,6.0420717,108920.0,108910.0,1e-08]
[1756633539805,6.0420717,108920.0,108890.0,1e-08]
[1756633539806,2.17462566,108900.0,108890.0,1e-08]
[1756633540018,2.35242525,108900.0,108890.0,0.00301001]
[1756633540225,2.35242525,108900.0,108890.0,1e-08]
[1756633540453,2.38523025,108900.0,108890.0,1e-08]
[1756633541080,2.38523025,108900.0,108890.0,0.00047635]
[1756633541288,2.38004025,108900.0,108890.0,0.00047635]
[1756633541513,2.72004025,108900.0,108890.0,0.00047635]
[1756633541728,2.72311025,108900.0,108890.0,0.00047635]
[1756633542142,2.72523025,108900.0,108890.0,0.00047635]
[1756633542561,2.72523025,108900.0,108890.0,0.00047634]
[1756633542969,2.72523025,108900.0,108890.0,1e-08]
[1756633544301,2.81821026,108900.0,108890.0,1e-08]
[1756633546226,2.81178492,108900.0,108890.0,1e-08]
[1756633546434,2.81817921,108900.0,108890.0,1e-08]
[1756633548950,2.84273136,108900.0,108890.0,1e-08]
[1756633549186,0.18368846,108880.0,108870.0,0.0751119]
[1756633549384,0.18368846,108880.0,108870.0,0.07728959]
[1756633549385,1.33345393,108880.0,108870.0,0.07728959]
[1756633550192,1.35555732,108880.0,108870.0,0.07515959]
[1756633550365,1.37817532,108880.0,108870.0,0.07726959]
[1756633550997,1.71817532,108880.0,108870.0,0.07726959]
[1756633551232,1.72317532,108880.0,108870.0,0.07726959]
[1756633551644,1.72317532,108880.0,108870.0,0.08026959]
[1756633551841,1.56687532,108880.0,108870.0,0.08126959]
[1756633552043,1.72119532,108880.0,108870.0,0.08126959]
[1756633553290,1.72321532,108880.0,108870.0,0.08126959]
[1756633554107,1.73957144,108880.0,108870.0,0.08126959]
[1756633555201,1.73755144,108880.0,108870.0,0.08126959]
[1756633556084,1.73957144,108880.0,108870.0,0.08126959]
[1756633557213,1.73956508,108880.0,108870.0,0.08126959]
[1756633557410,1.73956579,108880.0,108870.0,0.08126959]
[1756633558865,1.58524579,108880.0,108870.0,0.08126959]
[1756633559072,1.73948579,108880.0,108870.0,0.08126959]
[1756633559878,1.73944579,108880.0,108870.0,0.08126959]
[1756633560053,1.72308967,108880.0,108870.0,0.08126959]
[1756633560212,0.5734042,108880.0,108870.0,0.08126959]
[1756633560429,1.71808967,108880.0,108870.0,0.08126959]
[1756633561049,1.71812967,108880.0,108870.0,0.08126959]
[1756633562589,1.71808967,108880.0,108870.0,0.08126959]
[1756633563286,1.72308967,108880.0,108870.0,0.08126959]
[1756633563691,1.73931381,108880.0,108870.0,0.08126959]
[1756633566557,1.72221607,108880.0,108870.0,0.08126959]
[1756633566796,1.73933055,108880.0,108870.0,0.08126959]
[1756633569031,1.73933055,108880.0,108870.0,0.07915959]
[1756633571275,2.73481602,108880.0,108870.0,0.07915959]
[1756633571482,0.52372221,108860.0,108850.0,0.0002]
[1756633571633,1.51920768,108860.0,108850.0,0.0932277]
[1756633571837,1.52420768,108860.0,108850.0,0.0953377]
[1756633572089,1.55182768,108860.0,108850.0,0.0953377]
[1756633572402,1.72311311,108860.0,108850.0,0.00024769]
[1756633572814,1.72311311,108860.0,108850.0,0.00324769]
[1756633573644,2.71859858,108860.0,108850.0,0.00324769]
[1756633574060,2.71855858,108860.0,108850.0,0.00324769]
[1756633574542,2.71855858,108860.0,108850.0,0.00124769]
[1756633574749,6.1506792,108860.0,108850.0,0.00124769]
[1756633574947,6.1506792,108860.0,108850.0,1e-08]
[1756633575382,6.1536792,108860.0,108850.0,1e-08]
[1756633575662,0.52375597,108840.0,108830.0,0.00028]
[1756633575902,1.51924144,108840.0,108830.0,0.00032769]
[1756633576103,1.52126144,108840.0,108830.0,0.00243769]
[1756633576308,1.5689761,108840.0,108830.0,0.00243769]
[1756633576513,1.5689761,108840.0,108830.0,0.00032769]
[1756633576715,1.7232161,108840.0,108830.0,0.00032769]
[1756633577422,1.7231761,108840.0,108830.0,0.00343769]
[1756633577619,1.72316304,108840.0,108830.0,0.00343769]
[1756633578033,1.72316304,108840.0,108830.0,0.00132769]
[1756633578236,1.72316304,108840.0,108830.0,0.00232769]
[1756633578444,1.56395838,108840.0,108830.0,0.00443769]
[1756633578651,1.56395838,108840.0,108830.0,0.00586769]
[1756633578856,0.56847291,108840.0,108830.0,0.0988477]
[1756633579062,0.56847291,108840.0,108830.0,0.12591224]
[1756633579063,1.21503995,108840.0,108830.0,0.12591224]
[1756633579483,0.99430691,108840.0,108830.0,0.0953077]
[1756633579681,1.45943933,108840.0,108830.0,0.0953077]
[1756633580005,0.57146145,108840.0,108830.0,0.0974277]
[1756633580225,1.01139539,108840.0,108830.0,0.0974277]
[1756633580795,0.56847145,108840.0,108830.0,0.0974277]
[1756633580989,1.01139539,108840.0,108830.0,0.0974277]
[1756633582543,1.01651539,108840.0,108830.0,0.0953077]
[1756633582974,0.57359145,108840.0,108830.0,0.0953077]
[1756633583223,1.01651539,108840.0,108830.0,0.0953077]
[1756633583606,1.01651539,108840.0,108830.0,0.0974277]
[1756633584751,0.99942691,108840.0,108830.0,0.0974277]
[1756633585040,1.01650513,108840.0,108830.0,0.0974277]
[1756633585618,0.57358119,108840.0,108830.0,0.00232769]
[1756633585857,1.01650513,108840.0,108830.0,0.00232769]
[1756633586375,1.45942907,108840.0,108830.0,0.00232769]
[1756633587137,1.61414907,108840.0,108830.0,0.00232769]
[1756633587755,1.27414907,108840.0,108830.0,0.00232769]
[1756633588643,1.27414728,108840.0,108830.0,0.00232769]
[1756633588982,1.27414728,108840.0,108830.0,0.00132769]
[1756633589397,1.27414728,108840.0,108830.0,0.00032769]
[1756633590510,1.61414728,108840.0,108830.0,0.00032769]
[1756633594639,1.45942728,108840.0,108830.0,0.00032769]
[1756633594839,1.61422728,108840.0,108830.0,0.00032769]
[1756633595051,1.61423018,108840.0,108830.0,0.00032769]
[1756633595895,1.61419018,108840.0,108830.0,0.00032769]
[1756633596102,0.5684623,108840.0,108830.0,0.00244769]
[1756633596465,1.16614624,108840.0,108830.0,0.00244769]
[1756633596687,1.01138624,108840.0,108830.0,0.00244769]
[1756633596910,0.7232223,108840.0,108830.0,0.00244769]
[1756633597093,1.16827624,108840.0,108830.0,0.00244769]
[1756633597357,1.01650624,108840.0,108830.0,0.00032769]
[1756633597568,1.45943018,108840.0,108830.0,0.00032769]
[1756633597985,1.01650624,108840.0,108830.0,0.00244769]
[1756633598390,1.01650624,108840.0,108830.0,0.00344769]
[1756633598812,1.01650624,108840.0,108830.0,0.00444769]
[1756633599226,1.01651871,108840.0,108830.0,0.00444769]
[1756633599850,1.01651871,108840.0,108830.0,0.04481526]
[1756633600077,1.01652416,108840.0,108830.0,0.00444769]
[1756633600288,0.57360022,108840.0,108830.0,0.00444769]
[1756633600498,1.01652416,108840.0,108830.0,0.00444769]
[1756633600959,0.57360022,108840.0,108830.0,0.00444769]
[1756633601154,1.01140416,108840.0,108830.0,0.00444769]
[1756633601361,1.16632416,108840.0,108830.0,0.00444769]
[1756633602253,1.16931416,108840.0,108830.0,0.00444769]
[1756633602443,1.17144416,108840.0,108830.0,0.00444769]
[1756633602601,1.01652416,108840.0,108830.0,0.00444769]
[1756633603769,1.01652416,108840.0,108830.0,0.00232769]
[1756633604592,1.17144416,108840.0,108830.0,0.00232769]
[1756633604805,0.72852022,108840.0,108830.0,0.04372618]
[1756633604973,1.17144416,108840.0,108830.0,0.04372618]
[1756633606913,1.17132416,108840.0,108830.0,0.04372618]
[1756633607619,1.01652416,108840.0,108830.0,0.04372618]
[1756633607854,1.01140416,108840.0,108830.0,0.04584618]
[1756633608044,1.16620416,108840.0,108830.0,0.00444769]
[1756633608246,1.17132416,108840.0,108830.0,0.00232769]
[1756633609885,1.17135757,108840.0,108830.0,0.00232769]
[1756633610286,1.01655757,108840.0,108830.0,0.00232769]
[1756633610459,1.1713178,108840.0,108830.0,0.00232769]
[1756633611309,1.1713178,108840.0,108830.0,0.00445769]
[1756633611715,1.0165578,108840.0,108830.0,0.00445769]
[1756633611947,1.1712778,108840.0,108830.0,0.00232769]
[1756633612540,1.0165578,108840.0,108830.0,0.00232769]
[1756633612906,1.1712378,108840.0,108830.0,0.00232769]
[1756633613605,1.17123898,108840.0,108830.0,0.00232769]
[1756633614598,1.17119898,108840.0,108830.0,0.00232769]
[1756633617489,1.39268258,108840.0,108830.0,0.00232769]
[1756633617668,1.23808258,108840.0,108830.0,0.00232769]
[1756633617981,1.39264258,108840.0,108830.0,0.00232769]
[1756633620628,1.23808258,108840.0,108830.0,0.00232769]
[1756633620826,1.39265759,108840.0,108830.0,0.00232769]
[1756633623093,1.39257759,108840.0,108830.0,0.00232769]
[1756633623382,1.39257616,108840.0,108830.0,0.00232769]
[1756633624782,1.39257616,108840.0,108830.0,0.04410295]
[1756633628144,1.39257616,108840.0,108830.0,0.04310295]
[1756633628576,1.39257616,108840.0,108830.0,0.04210295]
[1756633630069,1.39257059,108840.0,108830.0,0.04210295]
[1756633630720,1.39257054,108840.0,108830.0,0.04210295]
[1756633630934,1.39257054,108840.0,108830.0,0.00032769]
[1756633631151,1.39257037,108840.0,108830.0,0.00032769]
[1756633632681,1.23809037,108840.0,108830.0,0.00032769]
[1756633632893,1.39249037,108840.0,108830.0,0.00032769]
[1756633633326,1.23809037,108840.0,108830.0,0.00032769]
[1756633633564,1.39249037,108840.0,108830.0,0.00032769]
[1756633634963,0.57364283,108840.0,108830.0,0.00032769]
[1756633635179,1.39249037,108840.0,108830.0,0.00032769]
[1756633637599,1.23809037,108840.0,108830.0,0.00032769]
[1756633637798,1.39245037,108840.0,108830.0,0.00032769]
[1756633639044,1.23809037,108840.0,108830.0,0.00032769]
[1756633639330,1.39245037,108840.0,108830.0,0.00032769]
[1756633641344,1.39244975,108840.0,108830.0,0.00032769]
[1756633641945,1.39244976,108840.0,108830.0,0.00032769]
[1756633642709,1.23808976,108840.0,108830.0,0.00032769]
[1756633642913,1.39240976,108840.0,108830.0,0.00032769]
[1756633644770,1.39236976,108840.0,108830.0,0.00032769]
[1756633646832,1.22037446,108840.0,108830.0,0.00032769]
[1756633647215,1.24800246,108840.0,108830.0,0.00032769]
[1756633649567,1.09372246,108840.0,108830.0,0.00032769]
[1756633649948,1.24276246,108840.0,108830.0,0.00230769]
[1756633650158,1.24796246,108840.0,108830.0,0.00032769]
[1756633652152,1.24797062,108840.0,108830.0,0.00032769]
[1756633653070,1.24797062,108840.0,108830.0,0.00230769]
[1756633653288,1.09381062,108840.0,108830.0,0.00230769]
[1756633653502,1.24793062,108840.0,108830.0,0.00230769]
[1756633653715,1.24793062,108840.0,108830.0,0.00032769]
[1756633660915,1.24789062,108840.0,108830.0,0.00032769]
[1756633661335,1.09381062,108840.0,108830.0,0.00032769]
[1756633661748,1.24797062,108840.0,108830.0,0.00032769]
[1756633662574,1.09381062,108840.0,108830.0,0.00032769]
[1756633662820,1.23082321,108840.0,108830.0,0.00032769]
[1756633663028,1.24797156,108840.0,108830.0,0.00032769]
[1756633664613,0.58352402,108840.0,108830.0,0.00032769]
[1756633664809,1.24797156,108840.0,108830.0,0.00032769]
[1756633668275,1.58019533,108840.0,108830.0,0.00032769]
[1756633668973,1.58662594,108840.0,108830.0,0.00032769]
[1756633670402,1.58962594,108840.0,108830.0,0.00032769]
[1756633670830,0.59295463,108840.0,108830.0,0.00032769]
[1756633671044,0.59299463,108840.0,108830.0,0.00032769]
[1756633671262,1.58966594,108840.0,108830.0,0.00032769]
[1756633671500,1.09681156,108840.0,108830.0,0.00032769]
[1756633671709,1.25133156,108840.0,108830.0,0.00032769]
[1756633673661,1.09680605,108840.0,108830.0,0.00032769]
[1756633673887,1.25779457,108840.0,108830.0,0.00032769]
[1756633674130,1.68299835,108840.0,108830.0,1e-08]
[1756633674271,1.70274589,108840.0,108830.0,1e-08]
[1756633675351,0.55151458,108840.0,108830.0,1e-08]
[1756633675557,1.68299835,108840.0,108830.0,1e-08]
[1756633680900,1.68298218,108840.0,108830.0,1e-08]
[1756633681977,1.52842218,108840.0,108830.0,1e-08]
[1756633682378,1.68302218,108840.0,108830.0,1e-08]
[1756633682622,1.52842218,108840.0,108830.0,1e-08]
[1756633682838,1.59004217,108840.0,108830.0,1e-08]
[1756633683278,1.57291112,108840.0,108830.0,1e-08]
[1756633683501,1.10321678,108840.0,108830.0,1e-08]
[1756633683719,1.25139311,108840.0,108830.0,1e-08]
[1756633683925,1.25139315,108840.0,108830.0,1e-08]
[1756633685516,1.25135315,108840.0,108830.0,1e-08]
[1756633686289,1.59000077,108840.0,108830.0,1e-08]
[1756633686521,1.59000076,108840.0,108830.0,1e-08]
[1756633687383,1.59012076,108840.0,108830.0,1e-08]
[1756633694194,1.57299219,108840.0,108830.0,1e-08]
[1756633694402,1.59012609,108840.0,108830.0,1e-08]
[1756633695068,1.59012719,108840.0,108830.0,1e-08]
[1756633698373,1.60986846,108840.0,108830.0,1e-08]
[1756633700271,1.70284847,108840.0,108830.0,1e-08]
[1756633700482,5.12843047,108840.0,108830.0,1e-08]
[1756633700933,6.12510178,108840.0,108830.0,1e-08]
[1756633701317,5.12842949,108840.0,108830.0,1e-08]
[1756633702111,4.97374949,108840.0,108830.0,1e-08]
[1756633702331,5.12846949,108840.0,108830.0,1e-08]
[1756633703143,4.97374949,108840.0,108830.0,1e-08]
[1756633703351,5.12842949,108840.0,108830.0,1e-08]
[1756633704614,4.97374949,108840.0,108830.0,1e-08]
[1756633704841,5.12842949,108840.0,108830.0,1e-08]
[1756633705026,5.12842665,108840.0,108830.0,1e-08]
[1756633706388,4.97374665,108840.0,108830.0,1e-08]
[1756633706628,5.12838665,108840.0,108830.0,1e-08]
[1756633708386,5.12834665,108840.0,108830.0,1e-08]
[1756633709033,5.12830665,108840.0,108830.0,1e-08]
[1756633709860,4.97374665,108840.0,108830.0,1e-08]
[1756633710018,5.12830665,108840.0,108830.0,1e-08]
[1756633712172,4.97374665,108840.0,108830.0,1e-08]
[1756633712394,5.12826665,108840.0,108830.0,1e-08]
[1756633712796,4.97374665,108840.0,108830.0,1e-08]
[1756633712992,4.72909771,108840.0,108830.0,0.00201001]
[1756633713502,4.75837368,108840.0,108830.0,1e-08]
[1756633713684,4.91285368,108840.0,108830.0,1e-08]
[1756633714105,4.91273682,108840.0,108830.0,1e-08]
[1756633715186,5.25273682,108840.0,108830.0,1e-08]
[1756633715778,5.25273519,108840.0,108830.0,1e-08]
[1756633718493,5.27247031,108840.0,108830.0,1e-08]
[1756633718957,0.52377285,108830.0,108820.0,1e-08]
[1756633719175,5.33177332,108830.0,108820.0,1e-08]
[1756633719386,1.91133132,108830.0,108820.0,1e-08]
[1756633719620,5.36454732,108830.0,108820.0,1e-08]
[1756633720261,5.36754732,108830.0,108820.0,1e-08]
[1756633721115,5.34311005,108830.0,108820.0,1e-08]
[1756633722524,5.32337493,108830.0,108820.0,1e-08]
[1756633723152,5.3430901,108830.0,108820.0,1e-08]
[1756633726396,5.32595158,108830.0,108820.0,1e-08]
[1756633726655,5.34306157,108830.0,108820.0,1e-08]
[1756633730071,5.18870157,108830.0,108820.0,1e-08]
[1756633730276,5.34314157,108830.0,108820.0,1e-08]
[1756633733735,5.34313255,108830.0,108820.0,1e-08]
[1756633736970,4.11620124,108830.0,108820.0,0.00198001]
[1756633737192,3.63998885,108830.0,108820.0,0.00198001]
[1756633737408,0.53610139,108830.0,108820.0,0.00341001]
[1756633737622,0.51899662,108830.0,108820.0,0.00341001]
[1756633737843,0.85899662,108830.0,108820.0,0.00341001]
[1756633738054,0.85899662,108830.0,108820.0,0.03104101]
[1756633738502,0.52677285,108830.0,108820.0,0.03104101]
[1756633738703,1.19122039,108830.0,108820.0,0.03104101]
[1756633739339,0.96984807,108830.0,108820.0,0.03104101]
[1756633741221,0.96984807,108830.0,108820.0,0.02961101]
[1756633742191,1.12640807,108830.0,108820.0,0.02961101]
[1756633743063,1.12640807,108830.0,108820.0,0.03104101]
[1756633743484,0.96984807,108830.0,108820.0,0.03104101]
[1756633743693,0.52677285,108830.0,108820.0,0.03104101]
[1756633743910,0.96984807,108830.0,108820.0,0.03104101]
[1756633745339,0.96984807,108830.0,108820.0,0.02961101]
[1756633745541,1.01643381,108830.0,108820.0,0.02961101]
[1756633745752,0.96984807,108830.0,108820.0,0.02961101]
[1756633751603,0.97305807,108830.0,108820.0,0.02961101]
[1756633753148,1.13148807,108830.0,108820.0,0.02961101]
[1756633755372,1.13152807,108830.0,108820.0,0.02763101]
[1756633758233,0.94090326,108830.0,108820.0,0.02763101]
[1756633758455,1.12467611,108830.0,108820.0,0.02763101]
[1756633758826,1.12467611,108830.0,108820.0,1e-08]
[1756633759315,0.01443074,108840.0,108830.0,0.20471167]
[1756633759504,4.736e-05,108840.0,108830.0,0.545758]
[1756633759908,4.736e-05,108840.0,108830.0,0.573379]
[1756633760120,4.736e-05,108840.0,108830.0,0.9054059]
[1756633760878,4.736e-05,108840.0,108830.0,0.9084059]
[1756633761079,4.736e-05,108840.0,108830.0,0.9054059]
[1756633761376,4.736e-05,108840.0,108830.0,1.01601965]
[1756633761574,4.736e-05,108840.0,108830.0,1.02101965]
[1756633761981,4.736e-05,108840.0,108830.0,0.87728927]
[1756633762162,4.736e-05,108840.0,108830.0,1.03368927]
[1756633762492,4.736e-05,108840.0,108830.0,1.03868927]
[1756633762901,4.736e-05,108840.0,108830.0,1.03368927]
[1756633763504,4.736e-05,108840.0,108830.0,1.04068927]
[1756633763980,4.736e-05,108840.0,108830.0,1.04060927]
[1756633765378,4.736e-05,108840.0,108830.0,1.48019588]
[1756633765598,4.736e-05,108840.0,108830.0,1.53019588]
[1756633766813,4.736e-05,108840.0,108830.0,1.93019588]
[1756633768388,4.736e-05,108840.0,108830.0,1.94632923]
[1756633768991,4.736e-05,108840.0,108830.0,1.50368858]
[1756633769211,4.736e-05,108840.0,108830.0,1.88060927]
[1756633770173,4.736e-05,108840.0,108830.0,1.92993683]
[1756633770378,4.736e-05,108840.0,108830.0,2.12993683]
[1756633770630,4.736e-05,108840.0,108830.0,2.06797965]
[1756633771150,4.736e-05,108840.0,108830.0,2.11035939]
[1756633771354,4.736e-05,108840.0,108830.0,1.7168343]
[1756633771571,4.736e-05,108840.0,108830.0,2.15947495]
[1756633773039,4.736e-05,108840.0,108830.0,2.42697495]
[1756633774634,4.736e-05,108840.0,108830.0,2.43912461]
[1756633775093,0.0752443,108880.0,108870.0,0.02093882]
[1756633775312,0.07529201,108880.0,108870.0,0.54714657]
[1756633775522,0.00519771,108880.0,108870.0,0.54485026]
[1756633776379,0.00519771,108880.0,108870.0,0.98955091]
[1756633776596,0.00519771,108880.0,108870.0,0.99755091]
[1756633777056,0.00519771,108880.0,108870.0,0.55491026]
[1756633777874,4.771e-05,108880.0,108870.0,0.55491026]
[1756633778300,4.771e-05,108880.0,108870.0,0.99755091]
[1756633778509,4.771e-05,108880.0,108870.0,0.84143091]
[1756633778723,4.771e-05,108880.0,108870.0,0.55483026]
[1756633778897,0.00317771,108880.0,108870.0,0.55483026]
[1756633779753,0.00317771,108880.0,108870.0,0.5952575]
[1756633781140,0.00519771,108880.0,108870.0,0.4647655]
[1756633781354,0.00519771,108880.0,108870.0,0.6207255]
[1756633781567,0.63152682,108880.0,108870.0,0.23251335]
[1756633781778,0.64853886,108880.0,108870.0,0.32762001]
[1756633781999,0.20589821,108880.0,108870.0,0.32762001]
[1756633782212,1.09117951,108880.0,108870.0,0.32762001]
[1756633782634,0.20589821,108880.0,108870.0,0.32762001]
[1756633782852,1.09117951,108880.0,108870.0,0.32762001]
[1756633783061,0.64853886,108880.0,108870.0,0.36038201]
[1756633787700,0.01705975,108880.0,108870.0,0.56708616]
[1756633788134,4.771e-05,108880.0,108870.0,0.56708616]
[1756633788359,4.771e-05,108880.0,108870.0,1.1104298]
[1756633788954,4.771e-05,108880.0,108870.0,1.6504298]
[1756633789157,4.771e-05,108880.0,108870.0,1.6003498]
[1756633789360,4.771e-05,108880.0,108870.0,1.55107681]
[1756633789744,0.62937479,108930.0,108920.0,0.02093882]
[1756633789948,0.65762081,108930.0,108920.0,0.3609365]
[1756633790155,0.65762081,108930.0,108920.0,0.5467175]
[1756633790156,0.02611602,108930.0,108920.0,0.5467175]
[1756633790358,0.02283472,108930.0,108920.0,0.5467175]
[1756633790898,0.02283472,108930.0,108920.0,0.5477175]
[1756633791087,0.02283472,108930.0,108920.0,0.5467175]
[1756633791346,0.02283472,108930.0,108920.0,0.5477175]
[1756633791608,0.02283472,108930.0,108920.0,0.58868465]
[1756633792028,0.64907951,108930.0,108920.0,0.2060165]
[1756633792236,0.64907951,108930.0,108920.0,0.34095768]
[1756633792437,0.65107951,108930.0,108920.0,0.34095768]
[1756633792652,0.65107951,108930.0,108920.0,0.33995768]
[1756633792796,0.65107951,108930.0,108920.0,0.34095768]
[1756633792998,0.20843886,108930.0,108920.0,0.34095768]
[1756633793208,0.64907951,108930.0,108920.0,0.34095768]
[1756633793436,0.65107951,108930.0,108920.0,0.33995768]
[1756633794079,0.65107951,108930.0,108920.0,0.33991768]
[1756633795524,0.65107951,108930.0,108920.0,0.16362001]
[1756633795725,0.65107951,108930.0,108920.0,0.31942001]
[1756633797545,0.99107951,108930.0,108920.0,0.16362001]
[1756633797730,0.99107951,108930.0,108920.0,0.31942001]
[1756633797932,0.99960899,108930.0,108920.0,0.31942001]
[1756633798314,0.99107951,108930.0,108920.0,0.31942001]
[1756633800248,0.99107951,108930.0,108920.0,0.35136201]
[1756633800665,0.99107951,108930.0,108920.0,0.31942001]
[1756633800875,0.99104137,108930.0,108920.0,0.31942001]
[1756633801502,0.54840072,108930.0,108920.0,0.31942001]
[1756633801728,0.54840072,108930.0,108920.0,0.16362001]
[1756633801729,0.99104137,108930.0,108920.0,0.16362001]
[1756633801943,0.99104137,108930.0,108920.0,0.31934001]
[1756633803800,0.99104137,108930.0,108920.0,0.35848544]
[1756633804313,0.99104137,108930.0,108920.0,0.31934001]
[1756633804989,0.65104137,108930.0,108920.0,0.32150001]
[1756633806139,0.65104137,108930.0,108920.0,0.31934001]
[1756633810767,0.65104889,108930.0,108920.0,0.31934001]
[1756633816726,0.20840824,108930.0,108920.0,0.31934001]
[1756633816880,0.65104889,108930.0,108920.0,0.35848544]
[1756633817456,0.65961461,108930.0,108920.0,0.31934001]
[1756633818936,0.65961461,108930.0,108920.0,0.32150001]
[1756633819434,0.65104889,108930.0,108920.0,0.32150001]
[1756633819786,0.20840824,108930.0,108920.0,0.32150001]
[1756633819995,0.65104889,108930.0,108920.0,0.32150001]
[1756633820207,0.65104889,108930.0,108920.0,0.38747005]
[1756633820617,0.20840824,108930.0,108920.0,0.38747005]
[1756633820820,0.65104889,108930.0,108920.0,0.38747005]
[1756633821731,0.65104889,108930.0,108920.0,0.38531005]
[1756633821934,0.65113236,108930.0,108920.0,0.38531005]
[1756633822137,0.65113236,108930.0,108920.0,0.41828946]
[1756633822828,0.65113236,108930.0,108920.0,0.34764946]
[1756633823236,0.65113236,108930.0,108920.0,0.34728946]
[1756633823441,0.65113236,108930.0,108920.0,0.31431005]
[1756633824267,0.65113236,108930.0,108920.0,0.34728946]
[1756633828276,0.65113236,108930.0,108920.0,0.37024828]
[1756633828470,0.61779906,108930.0,108920.0,0.18494887]
[1756633828685,0.20274443,108930.0,108920.0,0.34018887]
[1756633828939,0.64538508,108930.0,108920.0,0.34018887]
[1756633831312,0.20274443,108930.0,108920.0,0.34018887]
[1756633831517,0.64339508,108930.0,108920.0,0.34018887]
[1756633832587,0.62624479,108930.0,108920.0,0.34018887]
[1756633832937,0.63131479,108930.0,108920.0,0.24814001]
[1756633833134,0.64847152,108930.0,108920.0,0.09298001]
[1756633833357,1.58623217,108930.0,108920.0,0.09298001]